Cogmind - Beta 16 @@@ ROGUE MODE // 2025.10.28 @ 10:54:43 Player: Rocko1345 Result: Self-destructed Performance ------------- Evolutions (0) 0 Regions Visited (4) 800 Robots Destroyed (10) 50 Value Destroyed (163) 163 Prototype IDs (23) 460 Alien Tech Used (0) 0 Bonus (300) 300 TOTAL SCORE: 1773 Bonus ------- Aligned with FarCom 300 Cogmind --------- Core Integrity 63/250 Matter 300/300 Energy 100/100 System Corruption 0% Temperature Cool (0) Movement Core (1350) Ox26 Location -9/Mines Parts ------- > --- POWER (1) -------- (None) > --- PROPULSION (2) --- (None) > --- UTILITY (2) ------ Improved Heat Sink Huge Storage Unit > --- WEAPON (2) ------- (None) > --- INVENTORY (25) --- Aluminum Leg Aluminum Leg Wheel Small Storage Unit Large Storage Unit Army-in-a-Box (30/30) Grenade Launcher Hammer Mining Claw Peak State ------------ > --- POWER ------------ Ion Engine > --- PROPULSION ------- Compact Wheel Compact Wheel > --- UTILITY ---------- Improved Heat Sink Huge Storage Unit > --- WEAPON ----------- Medium Laser Small Laser > --- INVENTORY -------- Aluminum Leg Aluminum Leg Wheel Small Storage Unit Large Storage Unit Army-in-a-Box Grenade Launcher Hammer Mining Claw [Rating: 15] Favorites ----------- Power Ion Engine Engine Ion Engine Propulsion Compact Wheel Wheel Compact Wheel Utility Improved Heat Sink Device Improved Heat Sink Storage Huge Storage Unit Weapon Medium Laser Energy Gun Medium Laser Build | -11 -10 -10 -10 -9 ------- Run | Yrd Mat Min Exi Min Slots Evolved . | . . . . . Power . | . . . . . Propulsion . | . . . . . Utility . | . . . . . Weapon . | . . . . . Parts Attached 12 | 6 6 . . . Power 2 | 1 1 . . . Engine 2 | 1 1 . . . Core . | . . . . . Reactor . | . . . . . Propulsion 4 | 2 2 . . . Treads . | . . . . . Leg . | . . . . . Wheel 4 | 2 2 . . . Hover . | . . . . . Flight . | . . . . . Utility 4 | 1 3 . . . Device 1 | . 1 . . . Storage 3 | 1 2 . . . Processor . | . . . . . Hackware . | . . . . . Protection . | . . . . . Artifact . | . . . . . Weapon 2 | 2 . . . . Energy Gun 2 | 2 . . . . Energy Cannon . | . . . . . Ballistic Gun . | . . . . . Ballistic Cannon . | . . . . . Launcher . | . . . . . Special Weapon . | . . . . . Impact Weapon . | . . . . . Slashing Weapon . | . . . . . Piercing Weapon . | . . . . . Special Melee Weapon . | . . . . . Unidentified Prototypes . | . . . . . Parts Lost 7 | . 2 . . 5 Power 2 | . 1 . . 1 Propulsion 3 | . 1 . . 2 Utility . | . . . . . Weapon 2 | . . . . 2 Highest Loss Streak 5 | . 1 . . 5 To Critical Strikes . | . . . . . Average Backups 6 | . 5 8 8 8 Power . | . . . . . Propulsion 2 | . 2 3 3 3 Utility 1 | . 1 2 2 2 Weapon 2 | . 2 3 3 3 Tool/Special . | . . . . . Unused Backups 6 | . . . . 6 Power . | . . . . . Propulsion 2 | . . . . 2 Utility 1 | . . . . 1 Weapon 3 | . . . . 3 Tool/Special . | . . . . . Average Slot Usage (%) 95 | . 94 100 100 71 Engine 13 | . 13 14 14 8 Wheel 26 | . 25 28 28 22 Device 13 | . 12 14 14 14 Storage 14 | . 14 14 14 14 Energy Gun 27 | . 28 28 28 11 Peak Build Rating 15 | 6 9 9 15 15 Average Rating 9 | 3 8 9 12 12 On Entrance 7 | . 6 9 9 15 Avg Prop Armor Cover (%) . | . . . . . Naked Turns . | . . . . . Heaviest Build 89 | 11 89 89 89 89 Greatest Support 32 | 20 32 32 32 32 Greatest Overweight (x) 8 | . 8 2 2 5 Average Overweight (x) 1 | . 2 2 2 3 Largest Inventory Capacity 25 | 8 25 25 25 25 Average Capacity 20 | 6 18 25 25 25 Most Carried 14 | 2 8 8 14 14 Average Carried 7 | . 5 8 11 13 Final Capacity 25 | 8 25 25 25 25 Final Carried 14 | 2 8 8 14 14 Class Distribution -------------------- 54% | Mutant 45% | Scavenger-Mutant Dominant Class ---------------- Mutant | -10/Materials Scavenger-Mutant | -10/Mines Scavenger-Mutant | -10/Exiles Mutant | -9/Mines Resources | -11 -10 -10 -10 -9 ----------- Run | Yrd Mat Min Exi Min Matter Collected 295 | 190 105 . . . Remotely . | . . . . . Salvage Created 277 | . 277 . . . Parts 18 | . 18 . . . Haulers Intercepted . | . . . . . Recyclers Shooed 2 | . 2 . . . Parts Field Recycled . | . . . . . Retrieved Matter . | . . . . . Parts Self-Destructed . | . . . . . Prevented . | . . . . . Parts Restored . | . . . . . Kills | -11 -10 -10 -10 -9 ------- Run | Yrd Mat Min Exi Min Combat Hostiles Destroyed 8 | . 8 . . . Guns 8 | . 8 . . . Classes Destroyed 4 | . 4 . . . Recycler 1 | . 1 . . . Watcher 1 | . 1 . . . Swarmer 6 | . 6 . . . Grunt 2 | . 2 . . . Best Kill Streak 3 | . 3 . . . Combat Bots Only 3 | . 3 . . . Max Kills in Single Turn 2 | . 2 . . . Gunslinging 1 | . 1 . . . Exploded . | . . . . . Melee . | . . . . . Uniques/NPCs Destroyed . | . . . . . Combat | -11 -10 -10 -10 -9 -------- Run | Yrd Mat Min Exi Min Hostile Shots Fired 71 | . 39 . . 32 Missed 15 | . 6 . . 9 Hits 56 | . 33 . . 23 Projectile 56 | . 33 . . 23 Damage Taken 656 | . 361 . . 295 Core 187 | . 112 . . 75 Absorbed by Shields . | . . . . . Core Remaining (%) 100 | 100 . . . . Volleys Fired 35 | . 32 . . 3 Largest 2 | . 2 . . 2 Hottest 90 | . 90 . . 90 Shots Fired 69 | . 64 . . 5 Gun 69 | . 64 . . 5 Cannon . | . . . . . Launcher . | . . . . . Special . | . . . . . Kinetic . | . . . . . Thermal 69 | . 64 . . 5 Explosive . | . . . . . Electromagnetic . | . . . . . Robot Hit Streak 10 | . 10 . . 6 Robot Miss Streak 9 | . 9 . . . Penetration Max . | . . . . . Secondary Targets 2 | . 2 . . . Max Gunslinging Chain 1 | . 1 . . . Shots Hit Robots 39 | . 34 . . 5 Core Hits 15 | . 15 . . . Critical Kills . | . . . . . Critical Parts Destroyed . | . . . . . Critical Strikes 2 | . 1 . . 1 Burn 2 | . 1 . . 1 Melee Attacks . | . . . . . Impact . | . . . . . Slashing . | . . . . . Piercing . | . . . . . Sneak Attacks . | . . . . . Combat Hostiles . | . . . . . Follow-up Attacks . | . . . . . Damage Inflicted 495 | . 435 . . 60 Guns 495 | . 435 . . 60 Cannons . | . . . . . Explosions . | . . . . . Melee . | . . . . . Ramming . | . . . . . Kinetic . | . . . . . Thermal 495 | . 435 . . 60 Explosive . | . . . . . Electromagnetic . | . . . . . Impact . | . . . . . Slashing . | . . . . . Piercing . | . . . . . Highest Corruption . | . . . . . Average Corruption . | . . . . . Corruption Purged . | . . . . . Corruption Blocked . | . . . . . Overload Shots . | . . . . . Overflow Damage . | . . . . . Projectiles . | . . . . . Explosions . | . . . . . Melee . | . . . . . Knockbacks . | . . . . . Impact . | . . . . . Kinetic . | . . . . . Secondary . | . . . . . Self-Inflicted Damage . | . . . . . Shots . | . . . . . Rammed . | . . . . . Targets Rammed . | . . . . . Kicked . | . . . . . Crushed . | . . . . . Highest Temperature 219 | . 219 . . 10 Average Temperature 114 | . 135 . . 5 Received Heat Transfer 288 | . 132 . . 156 Siege Activations . | . . . . . Martial Activations . | . . . . . Shielding Activations . | . . . . . Robots Disrupted . | . . . . . Combat Hostiles . | . . . . . Robots Corrupted . | . . . . . Combat Hostiles . | . . . . . Parts Fried . | . . . . . Impact Corruptions . | . . . . . Robots Melted . | . . . . . Combat Hostiles . | . . . . . Parts Melted 1 | . 1 . . . Heat Transferred 1486 | . 1251 . . 235 Parts Sabotaged . | . . . . . Parts Stolen . | . . . . . Parts Stripped . | . . . . . Power Chain Reactions . | . . . . . Alert | -11 -10 -10 -10 -9 ------- Run | Yrd Mat Min Exi Min Maximum Alert Level . | . . . . . Low Security (%) 100 | 100 100 100 . 100 Level 1 . | . . . . . Level 2 . | . . . . . Level 3 . | . . . . . Level 4 . | . . . . . Level 5 . | . . . . . High Security . | . . . . . Max Security . | . . . . . Peak Influence 142 | . 142 28 . . Initial 28 | . . 28 . . Average 54 | . 71 15 . . Influence Increases 282 | . 282 . . . Destroy 0b10 Robot/C 160 | . 160 . . . Destroy 0b10 Robot/NC 10 | . 10 . . . Destroy Leader 32 | . 32 . . . Successful Hack 5 | . 5 . . . Lose Combat Pursuer 75 | . 75 . . . Influence Decreases 282 | . 209 73 . . Entered New Map 45 | . . 45 . . Time Decay 217 | . 189 28 . . Lost Part 20 | . 20 . . . Squads Dispatched . | . . . . . Investigation . | . . . . . Extermination . | . . . . . Reinforcement . | . . . . . Assault . | . . . . . Garrison . | . . . . . Intercept . | . . . . . Searches Triggered . | . . . . . Construction Impeded . | . . . . . Haulers Reinforced . | . . . . . Active Scanning Responses . | . . . . . Cargo Convoy Interrupts . | . . . . . Stealth | -11 -10 -10 -10 -9 --------- Run | Yrd Mat Min Exi Min Distress Signals 2 | . 2 . . . Communications Jammed . | . . . . . Distress Signals . | . . . . . Times Spotted 20 | . 17 . . 3 Peak Tracking Total 6 | . 6 . . 3 Tactical Retreats 1 | . 1 . . . Traps | -11 -10 -10 -10 -9 ------- Run | Yrd Mat Min Exi Min Traps Triggered . | . . . . . Indirectly . | . . . . . Trap Hack Attempts . | . . . . . Triggered . | . . . . . Disarmed . | . . . . . Reprogrammed . | . . . . . Reused . | . . . . . Traps Extracted . | . . . . . Installed . | . . . . . Triggered . | . . . . . Machines | -11 -10 -10 -10 -9 ---------- Run | Yrd Mat Min Exi Min Machines Disabled . | . . . . . Max in Single Turn . | . . . . . Machines Repaired . | . . . . . Machines Dismantled . | . . . . . Machines Sabotaged . | . . . . . Overloaded Fab Kills . | . . . . . Hacking | -11 -10 -10 -10 -9 --------- Run | Yrd Mat Min Exi Min Machines Accessed 3 | . 2 . 1 . Terminals 2 | . 2 . . . Fabricators . | . . . . . Repair Stations . | . . . . . Recycling Units . | . . . . . Scanalyzers . | . . . . . Garrison Access . | . . . . . Total Hacks 9 | . 8 . 1 . Successful 6 | . 5 . 1 . Failed 3 | . 3 . . . Catastrophic . | . . . . . Database Lockouts . | . . . . . Manual 8 | . 7 . 1 . Terminals 8 | . 8 . . . Fabricators . | . . . . . Repair Stations . | . . . . . Recycling Units . | . . . . . Scanalyzers . | . . . . . Garrison Access . | . . . . . Terminal Hacks 3 | . 2 . 1 . Terminal Index 1 | . 1 . . . Zone Layout 1 | . 1 . . . Proto ID Catalog 1 | . . . 1 . Fabricator Hacks . | . . . . . Repair Station Hacks . | . . . . . Recycling Unit Hacks . | . . . . . Scanalyzer . | . . . . . Garrison Access Hacks . | . . . . . Unauthorized Hacks 3 | . 3 . . . Terminals 3 | . 3 . . . Track 1 | . 1 . . . Botnet 2 | . 2 . . . Fabricators . | . . . . . Repair Stations . | . . . . . Recycling Units . | . . . . . Scanalyzers . | . . . . . Garrison Access . | . . . . . Data Cores Recovered . | . . . . . Used . | . . . . . Hacking Detections 1 | . 1 . . . Full Trace Events . | . . . . . Feedback Events . | . . . . . Feedback Blocked . | . . . . . Robot Schematics Acquired . | . . . . . Robots Built . | . . . . . Authchips . | . . . . . Time . | . . . . . Total Robot Build Rating . | . . . . . Part Schematics Acquired . | . . . . . Parts Built . | . . . . . Authchips . | . . . . . Time . | . . . . . Total Part Build Rating . | . . . . . Part Studies Acquired . | . . . . . Parts Repaired . | . . . . . Time . | . . . . . Parts Recycled . | . . . . . Recycled Matter . | . . . . . Retrieved Matter . | . . . . . Retrieved Components . | . . . . . Parts Scanalyzed . | . . . . . Part Schematics Acquired . | . . . . . Parts Damaged . | . . . . . Bothacking | -11 -10 -10 -10 -9 ------------ Run | Yrd Mat Min Exi Min Used RIF Installer . | . . . . . Robots Hacked . | . . . . . Non-combat . | . . . . . Combat . | . . . . . Robot Hacks Applied . | . . . . . Relay Couplers Released . | . . . . . Fabnet Peak Effective % . | . . . . . Robots Rewired . | . . . . . Allies Hacked . | . . . . . Hacks Repelled . | . . . . . Allies | -11 -10 -10 -10 -9 -------- Run | Yrd Mat Min Exi Min Total Allies . | . . . . . Largest Group . | . . . . . Highest-Rated Group . | . . . . . Highest-Rated Ally . | . . . . . Total Orders . | . . . . . Ally Attacks . | . . . . . Total Damage . | . . . . . Kills . | . . . . . Allies Corrupted . | . . . . . Allies Melted . | . . . . . Intel | -11 -10 -10 -10 -9 ------- Run | Yrd Mat Min Exi Min Active Infowar (turns) . | . . . . . Robot Analysis Total . | . . . . . Derelict Logs Recovered . | . . . . . Drone Launches . | . . . . . Drone Recoveries . | . . . . . Exploration | -11 -10 -10 -10 -9 ------------- Run | Yrd Mat Min Exi Min Turns Passed 971 | 59 453 69 353 37 Spaces Moved 696 | 66 288 54 271 17 Core 16 | 16 . . . . Treads . | . . . . . Legs . | . . . . . Wheels 680 | 50 288 54 271 17 Hover . | . . . . . Flight . | . . . . . Fastest Speed 50 | 50 80 130 130 130 Average Speed 118 | 72 113 130 130 159 Slowest Speed 200 | 80 200 130 130 175 Overloaded Moves . | . . . . . Propulsion Burnouts . | . . . . . Robots Hopped . | . . . . . Potential Cave-ins . | . . . . . Cave-ins Triggered . | . . . . . Exploration Rate (%) 24 | 4 33 11 63 12 Regions Visited 4 Branch Regions 3 Pre-discovered Areas . | . . . . . Known Exits Taken . | . . . . . Unknown Exits Taken 4 | 1 1 1 1 . Scrap Searched . | . . . . . Spaces Dug . | . . . . . Terrain Destroyed . | . . . . . Melee . | . . . . . Projectile . | . . . . . AOE . | . . . . . Terrain Rammed . | . . . . . Walls Destroyed . | . . . . . Machines Disabled . | . . . . . Actions | -11 -10 -10 -10 -9 --------- Run | Yrd Mat Min Exi Min Total 767 | 73 347 53 272 22 Wait 20 | . 19 . 1 . Move 692 | 65 287 53 270 17 Hop . | . . . . . Pick Up 7 | 2 3 . 1 1 Fast Attach 9 | 6 3 . . . Attach . | . . . . . Detach . | . . . . . Swap 3 | . 3 . . . Drop 1 | . . . . 1 Fire 35 | . 32 . . 3 Melee . | . . . . . Ram . | . . . . . Kick . | . . . . . Crush . | . . . . . Escape Stasis . | . . . . . Rewire . | . . . . . Trap . | . . . . . Miscellaneous . | . . . . . Route ------- -11/Scrapyard -10/Materials -10/Mines -10/Exiles -9/Mines History --------- Turn | Location | Event 16 | -11/Scrapyard | Discovered new exit (range 15) 60 | -11/Scrapyard | Entered Materials 185 | -10/Materials | Discovered new exit (range 16) 301 | -10/Materials | Build established: Mutant 513 | -10/Materials | Entered Mines 576 | -10/Mines | Deemed a non-threat by the Exiles lab entrance 577 | -10/Mines | Discovered new exit (range 5) 582 | -10/Mines | Entered Exiles 618 | -10/Exiles | Met 8R-AWN 635 | -10/Exiles | Met EX-HEX 672 | -10/Exiles | Met EX-BIN 698 | -10/Exiles | Aligned with FarCom system 699 | -10/Exiles | Given EX-Vault access code 733 | -10/Exiles | Opened EX-Vault 751 | -10/Exiles | Found Army-in-a-Box 781 | -10/Exiles | Warned to stay clear of 0b10 Research branches 808 | -10/Exiles | Build established: Scavenger-Mutant 820 | -10/Exiles | Met EX-DEC 921 | -10/Exiles | Discovered new exit (range 14) 935 | -10/Exiles | Left Exiles lab with Army-in-a-Box 935 | -10/Exiles | Entered Mines 941 | -9/Mines | Core integrity fell below 50% 972 | -9/Mines | Self-destructed Last Messages --------------- EX-BIN: And don't even think about spreading that code around. We're gonna change it right after you leave. Most certainly not to something like 1234 which I did last time as a little joke and some thief managed to sneak in here and steal a few of HEX's prototypes. EX-DEC: Ah I see we have a visitor. One wrong move in here and I'll invert your atomic chain! 00822_ EX-DEC: "Oops, I hope HEX didn't hear that..." 00921_ EXIT=FOUND LOCATION=UNKNOWN GOAL=ESCAPE 00935_ Receiving FarCom transmissions... 00935_ Dropped Army-in-a-Box. 00936_ Acquired Army-in-a-Box. 00941_ G-34 Mercenary suffers critical hit (Burn). 00941_ Sml. Laser destroyed. 00946_ Med. Laser destroyed. 00952_ G-34 Mercenary heat damages Ion Engine. 00952_ Com. Wheel destroyed. 00953_ Ion Engine destroyed. 00971_ Com. Wheel destroyed. Map ----- +----------------------------------------------------+ | ??????????????????????????????????????????? | | ??????????????????????????????????????????? | | ??????????????????????????????????????????? | | ??????????????????????????????????????????? | | ??????????????????????????????????????????? | | ??????????????????????????????????????????? | | ??????????????????????????????????????????? | | ??????????????????????????????????????????? | | ??????????????????????????????#########???? | | ??????????????????????????????# #???? | | ??????????????????????????????# #???? | | ??????????????????????????????# #???? | | ??????????????????????????????# #???? | | ??????????????????????????????# #???? | | ??????????????????????????????# #???? | | ??????????????????????????????# #???? | | ??????????????????????????????# #???? | | ??????????????????????????????#### ####???? | | ?????????????????????????????????# #??????? | | ?????????????????????????????????# #??????? | | ???????????????????????????#####?# #??????? | | ??????????????????????????## ###g#??????? | | ??????????????????????????# gg##?????? | | ??????????????????????????# #?????? | | ???????????# ######### #?????? | | ???????????# @ ##?????? | | ?????????????? """ #??????? | | ????????????????""" #### #?????? | | ????????????????""" ????## #????? | | ??????????????? ??????## #????? | | ??????????????# ?????????## #????? | | ??????????????## ???????????#### #???? | | ???????????????##???????????????## #???? | | ?????????????????????????????????? ##???? | | ?????????????????????????????????? #????? | | ?????????????????????????????????? #????? | | ??????????????????????????????????# ????? | | ???????????????????????????????????# #???? | | ????????????????????????????????????? ????? | | ??????????????????????????????????????????? | | ??????????????????????????????????????????? | | ??????????????????????????????????????????? | | ??????????????????????????????????????????? | | ??????????????????????????????????????????? | | ??????????????????????????????????????????? | | ??????????????????????????????????????????? | | ??????????????????????????????????????????? | | ??????????????????????????????????????????? | | | | | +----------------------------------------------------+ Best States ------------- Heat Dissipation 39 Energy Generation 10 Energy Capacity 250 Matter Stores 300 Matter Capacity 300 Sight Range 16 Terrain Scan Density 10 Evasion (%) 50 Item Schematics ----------------- None Robot Schematics ------------------ None Fabricated ------------ Nothing Repaired ---------- Nothing Studied --------- None Alien Tech Used ----------------- None Achievements -------------- None Challenges ------------ None Game ------ Seed ArchitectDispersalProjector Manual? 0 Play Time 00:08:01 Cumulative 210.1 hours Start 2025.10.28 @ 10:47:09 End 2025.10.28 @ 10:54:43 Sessions 1 Manual Loads 0 Difficulty Rogue Special Mode None Game No. 253 Rogue 79 Adventurer 174 Explorer 0 Win Type - Total 1 Types 1/0/0/0/0/0/0/0/0/0 Lore% 53 Gallery% 58 Achievement% 39 Wizard Run 0 Options --------- Layout 0 ASCII 0 Keyboard 1 Movement Numpad Keybinds 0 Fullscreen 1 Font 18/Terminus Map View 76x50 Zoom Use 0% Tactical HUD 1 Map Filters NONE Filters NONE Steam 1 RUN: be89a5e5-79b8-4766-931d-ef04e7e4a26c